[Event "XI Paracin Festival 2018"]
[Site "Paracin"]
[Date "2018.07.11"]
[Round "7"]
[White "Cvetkovic, Nemanja"]
[Black "Djordjevic, Vuk"]
[Result "1-0"]
[ECO "E15"]
[WhiteElo "2278"]
[BlackElo "2403"]
[Annotator "NA"]
[PlyCount "67"]
[EventDate "2018.07.06"]
[EventType "swiss"]
[EventCountry "SRB"]
[SourceTitle "playchess.com"]
[Source "ChessBase"]
[SourceQuality "1"]
[TimeControl "5400+30"]

1. d4 {[%emt 0:00:00]} Nf6 {[%emt 0:00:00]} 2. c4 {[%emt 0:00:00]} e6 {[%emt 0:00:00]} 3. Nf3 {[%emt 0:00:00]} b6 {[%emt 0:00:00]} 4. g3 {[%emt 0:00:00]} Ba6 {[%emt 0:00:05]} 5. Qc2 {[%emt 0:00:03]} Bb7 {[%emt 0:00:11]} 6. Bg2 {[%emt 0:00:17]} c5 {[%emt 0:00:06]} 7. d5 {[%emt 0:00:24]} exd5 {[%emt 0:01:12]} 8. cxd5 {[%emt 0:00:09]} Nxd5 {[%emt 0:00:41]} 9. O-O {[%emt 0:00:40]} Be7 {[%emt 0:00:08]} 10. Qe4 {[%emt 0:00:15]} Bc6 {[%emt 0:05:19]} 11. Ne5 {[%emt 0:00:56]} Nf6 {[%emt 0:01:34]} 12. Nxc6 {[%emt 0:00:26]} Nxc6 {[%emt 0:00:39]} 13. Qa4 {[%emt 0:00:35]} O-O {[%emt 0:01:36]} 14. Rd1 {[%emt 0:11:42]} Nd4 {[%emt 0:07:22]} 15. Nc3 {[%emt 0:01:22]} b5 {[%emt 0:05:53]} 16. Qa6 {[%emt 0:00:51]} b4 {[%emt 0:05:19]} 17. Nd5 {[%emt 0:01:56]} Nxd5 {[%emt 0:11:01]} 18. Bxd5 {[%emt 0:02:13]} Rb8 {[%emt 0:06:07]} 19. Bf4 {[%emt 0:02:56]} Rb6 {[%emt 0:07:24]} 20. Qc4 {[%emt 0:00:39]} Qc8 {[%emt 0:02:13]} 21. Bxf7+ {[%emt 0:12:05]} Kh8 {[%emt 0:00:56]} 22. Rd2 {[%emt 0:04:36]} d5 {[%emt 0:22:39]} 23. Bxd5 {[%emt 0:03:48]} Rxf4 {[%emt 0:01:53]} 24. gxf4 {[%emt 0:00:33]} Qg4+ {[%emt 0:01:07]} 25. Bg2 {[%emt 0:14:14]} Qxf4 {[%emt 0:02:33]} 26. Qd3 {[%emt 0:08:42]} Rh6 {[%emt 0:11:44]} 27. Rad1 {[%emt 0:12:44]} Qxh2+ {[%emt 0:00:54]} 28. Kf1 {[%emt 0:00:01]} Rf6 {[%emt 0:00:43]} 29. Qe4 {[%emt 0:05:06]} Nf5 {[%emt 0:02:36]} 30. Rd8+ {[%emt 0:01:27]} Bf8 {[%emt 0:00:01]} 31. Rxf8+ {[%emt 0:01:53]} Rxf8 {[%emt 0:00:01]} 32. Qxf5 {[%emt 0:00:29]} Rxf5 {[%emt 0:01:34]} 33. Rd8+ {[%emt 0:00:10]} Rf8 {[%emt 0:00:01]} 34. Rxf8# 1-0

[Event "XI Paracin Festival 2018"]
[Site "Paracin"]
[Date "2018.07.11"]
[Round "7"]
[White "Bratkovic, Jakob"]
[Black "Rahul Srivatshav P"]
[Result "0-1"]
[ECO "B85"]
[WhiteElo "2253"]
[BlackElo "2397"]
[Annotator "NA"]
[PlyCount "110"]
[EventDate "2018.07.06"]
[EventType "swiss"]
[EventCountry "SRB"]
[SourceTitle "playchess.com"]
[Source "ChessBase"]
[SourceQuality "1"]
[TimeControl "5400+30"]

1. e4 {[%emt 0:02:30]} c5 {[%emt 0:00:00]} 2. Nf3 {[%emt 0:00:11]} e6 {[%emt 0:00:00]} 3. d4 {[%emt 0:00:04]} cxd4 {[%emt 0:00:00]} 4. Nxd4 {[%emt 0:00:05]} Nc6 {[%emt 0:00:00]} 5. Nc3 {[%emt 0:00:06]} Qc7 {[%emt 0:00:12]} 6. Be3 {[%emt 0:00:07]} a6 {[%emt 0:00:04]} 7. Be2 {[%emt 0:00:04]} Nf6 {[%emt 0:00:09]} 8. O-O {[%emt 0:00:40]} Be7 {[%emt 0:00:10]} 9. f4 {[%emt 0:01:05]} d6 {[%emt 0:00:27]} 10. Qe1 {[%emt 0:00:28]} O-O {[%emt 0:00:15]} 11. Qg3 {[%emt 0:00:30]} Nxd4 {[%emt 0:01:22]} 12. Bxd4 {[%emt 0:00:08]} b5 {[%emt 0:00:05]} 13. a3 {[%emt 0:03:17]} Bb7 {[%emt 0:00:19]} 14. Kh1 {[%emt 0:02:03]} Rad8 {[%emt 0:00:43]} 15. Rae1 {[%emt 0:05:35]} Rfe8 {[%emt 0:00:46]} 16. Bd3 {[%emt 0:03:43]} Rd7 {[%emt 0:00:13]} 17. Ne2 {[%emt 0:07:18]} Qd8 {[%emt 0:02:04]} 18. Bc3 {[%emt 0:10:23]} Bf8 {[%emt 0:07:50]} 19. Ng1 {[%emt 0:06:06]} g6 {[%emt 0:07:12]} 20. Nf3 {[%emt 0:07:52]} Bg7 {[%emt 0:02:32]} 21. e5 {[%emt 0:04:42]} Nd5 {[%emt 0:01:27]} 22. Bd2 {[%emt 0:00:53]} Qb8 {[%emt 0:23:23]} 23. h4 {[%emt 0:09:51]} Ne7 {[%emt 0:08:23]} 24. h5 {[%emt 0:08:04]} Nf5 {[%emt 0:01:52]} 25. Qh2 {[%emt 0:04:24]} dxe5 {[%emt 0:10:00]} 26. hxg6 {[%emt 0:02:15]} fxg6 {[%emt 0:01:57]} 27. fxe5 {[%emt 0:00:45]} Bd5 {[%emt 0:02:13]} 28. Bf4 {[%emt 0:01:50]} Rf8 {[%emt 0:01:32]} 29. Nh4 {[%emt 0:02:10]} Nxh4 {[%emt 0:03:50]} 30. Qxh4 {[%emt 0:00:05]} Rdf7 {[%emt 0:01:20]} 31. Re3 {[%emt 0:01:56]} Qd8 {[%emt 0:02:16]} 32. Qxd8 {[%emt 0:04:17]} Rxd8 {[%emt 0:00:09]} 33. Bg3 {[%emt 0:00:11]} Rxf1+ {[%emt 0:01:25]} 34. Bxf1 {[%emt 0:00:01]} Bh6 {[%emt 0:02:37]} 35. Re1 {[%emt 0:01:08]} Rf8 {[%emt 0:01:10]} 36. Bd3 {[%emt 0:02:35]} Bd2 {[%emt 0:00:22]} 37. Ra1 {[%emt 0:02:08]} Bc6 {[%emt 0:02:19]} 38. Kh2 {[%emt 0:02:17]} Kg7 {[%emt 0:00:08]} 39. Rd1 {[%emt 0:00:42]} Be3 {[%emt 0:00:32]} 40. Be2 {[%emt 0:00:46]} Bd5 {[%emt 0:03:41]} 41. a4 {[%emt 0:03:05]} bxa4 {[%emt 0:01:25]} 42. Bxa6 {[%emt 0:00:52]} Rb8 {[%emt 0:01:38]} 43. c4 {[%emt 0:00:24]} Bc6 {[%emt 0:02:26]} 44. Rd6 {[%emt 0:00:27]} Rb6 {[%emt 0:00:39]} 45. Bc8 {[%emt 0:00:12]} Be4 {[%emt 0:00:06]} 46. Bxe6 {[%emt 0:02:46]} Rxb2 {[%emt 0:00:09]} 47. Rd7+ {[%emt 0:00:47]} Kh6 {[%emt 0:00:07]} 48. Bh3 {[%emt 0:00:22]} Rb1 {[%emt 0:00:32]} 49. Bg4 {[%emt 0:00:51]} Rb2 {[%emt 0:00:28]} 50. e6 {[%emt 0:00:53]} Kg5 {[%emt 0:03:05]} 51. Bh3 {[%emt 0:00:57]} Rb1 {[%emt 0:00:06]} 52. Bh4+ {[%emt 0:00:06]} Kxh4 {[%emt 0:00:21]} 53. Rxh7+ {[%emt 0:00:50]} Kg5 {[%emt 0:00:08]} 54. Rf7 {[%emt 0:00:03]} Bg1+ {[%emt 0:00:36]} 55. Kg3 {[%emt 0:00:03]} Rb3+ {[%emt 0:00:04]} 0-1

[Event "XI Paracin Festival 2018"]
[Site "Paracin"]
[Date "2018.07.11"]
[Round "7"]
[White "Parnali, S Dharia"]
[Black "Brankovic, Dejan"]
[Result "1/2-1/2"]
[ECO "A45"]
[WhiteElo "2170"]
[BlackElo "2377"]
[Annotator "NA"]
[PlyCount "92"]
[EventDate "2018.07.06"]
[EventType "swiss"]
[EventCountry "SRB"]
[SourceTitle "playchess.com"]
[Source "ChessBase"]
[SourceQuality "1"]
[TimeControl "5400+30"]

1. d4 {[%emt 0:00:00]} Nf6 {[%emt 0:00:00]} 2. g3 {[%emt 0:00:02]} g6 {[%emt 0:03:46]} 3. Bg2 {[%emt 0:00:14]} Bg7 {[%emt 0:00:05]} 4. e4 {[%emt 0:00:13]} d6 {[%emt 0:00:55]} 5. Ne2 {[%emt 0:01:06]} O-O {[%emt 0:02:43]} 6. O-O {[%emt 0:00:16]} e5 {[%emt 0:05:04]} 7. h3 {[%emt 0:01:57]} c6 {[%emt 0:08:03]} 8. Be3 {[%emt 0:01:54]} d5 {[%emt 0:08:51]} 9. Bg5 {[%emt 0:04:25]} h6 {[%emt 0:11:24]} 10. Bxf6 {[%emt 0:00:27]} Qxf6 {[%emt 0:01:05]} 11. f4 {[%emt 0:03:42]} exd4 {[%emt 0:02:01]} 12. e5 {[%emt 0:00:34]} Qd8 {[%emt 0:01:05]} 13. Nxd4 {[%emt 0:05:09]} Qb6 {[%emt 0:00:32]} 14. Nc3 {[%emt 0:00:22]} Qxb2 {[%emt 0:01:17]} 15. Qd3 {[%emt 0:02:24]} Qb4 {[%emt 0:01:35]} 16. Kh2 {[%emt 0:06:48]} Nd7 {[%emt 0:01:58]} 17. Rab1 {[%emt 0:16:32]} Qe7 {[%emt 0:06:59]} 18. Rbe1 {[%emt 0:15:20]} Nc5 {[%emt 0:02:27]} 19. Qd2 {[%emt 0:04:27]} f5 {[%emt 0:09:30]} 20. Rb1 {[%emt 0:03:48]} Be6 {[%emt 0:03:40]} 21. Rb2 {[%emt 0:00:36]} Rad8 {[%emt 0:01:31]} 22. Nce2 {[%emt 0:01:57]} Rfe8 {[%emt 0:01:26]} 23. Nxe6 {[%emt 0:02:23]} Nxe6 {[%emt 0:02:56]} 24. Nd4 {[%emt 0:00:31]} Rd7 {[%emt 0:03:47]} 25. Rfb1 {[%emt 0:00:43]} Nc5 {[%emt 0:01:59]} 26. Qa5 {[%emt 0:01:49]} a6 {[%emt 0:01:43]} 27. Rb6 {[%emt 0:01:06]} Bf8 {[%emt 0:01:08]} 28. Nxc6 {[%emt 0:05:31]} bxc6 {[%emt 0:00:24]} 29. Rxc6 {[%emt 0:00:05]} Kh7 {[%emt 0:09:18]} 30. Rbb6 {[%emt 0:00:45]} Rb7 {[%emt 0:01:46]} 31. Rxb7 {[%emt 0:00:47]} Nxb7 {[%emt 0:01:31]} 32. Qxa6 {[%emt 0:00:51]} Nc5 {[%emt 0:00:47]} 33. Qb6 {[%emt 0:00:11]} Nd7 {[%emt 0:02:31]} 34. Qc7 {[%emt 0:02:12]} Nb8 {[%emt 0:00:40]} 35. Qxe7+ {[%emt 0:00:06]} Bxe7 {[%emt 0:00:38]} 36. Re6 {[%emt 0:00:39]} d4 {[%emt 0:01:10]} 37. Bf1 {[%emt 0:00:26]} Nd7 {[%emt 0:00:21]} 38. Bb5 {[%emt 0:00:35]} Nc5 {[%emt 0:00:01]} 39. Rc6 {[%emt 0:01:23]} Rb8 {[%emt 0:00:15]} 40. a4 {[%emt 0:00:04]} Kg7 {[%emt 0:00:31]} 41. Kg2 {[%emt 0:00:22]} Rb7 {[%emt 0:00:13]} 42. Kf3 {[%emt 0:00:56]} Ra7 {[%emt 0:00:18]} 43. g4 {[%emt 0:00:56]} Nxa4 {[%emt 0:01:16]} 44. gxf5 {[%emt 0:00:06]} gxf5 {[%emt 0:00:02]} 45. Bd3 {[%emt 0:00:07]} Nc5 {[%emt 0:00:39]} 46. Bxf5 {[%emt 0:00:08]} h5 1/2-1/2

[Event "XI Paracin Festival 2018"]
[Site "Paracin"]
[Date "2018.07.11"]
[Round "7"]
[White "Peycheva, Gergana"]
[Black "Nestorovic, Dejan"]
[Result "1/2-1/2"]
[ECO "E47"]
[WhiteElo "2157"]
[BlackElo "2341"]
[Annotator "NA"]
[PlyCount "70"]
[EventDate "2018.07.06"]
[EventType "swiss"]
[EventCountry "SRB"]
[SourceTitle "playchess.com"]
[Source "ChessBase"]
[SourceQuality "1"]
[TimeControl "5400+30"]

1. d4 {[%emt 0:00:00]} Nf6 {[%emt 0:00:00]} 2. c4 {[%emt 0:00:02]} e6 {[%emt 0:00:00]} 3. Nc3 {[%emt 0:00:37]} Bb4 {[%emt 0:00:00]} 4. e3 {[%emt 0:01:00]} O-O {[%emt 0:00:09]} 5. Bd3 {[%emt 0:01:41]} b6 {[%emt 0:00:10]} 6. a3 {[%emt 0:03:57]} Bxc3+ {[%emt 0:05:11]} 7. bxc3 {[%emt 0:00:11]} c5 {[%emt 0:08:45]} 8. Nf3 {[%emt 0:02:00]} Nc6 {[%emt 0:04:59]} 9. O-O {[%emt 0:02:51]} d6 {[%emt 0:00:08]} 10. e4 {[%emt 0:04:05]} e5 {[%emt 0:00:13]} 11. h3 {[%emt 0:03:51]} h6 {[%emt 0:06:29]} 12. Qe2 {[%emt 0:03:33]} cxd4 {[%emt 0:09:56]} 13. cxd4 {[%emt 0:01:06]} exd4 {[%emt 0:00:12]} 14. Bb2 {[%emt 0:02:36]} Re8 {[%emt 0:01:27]} 15. Nxd4 {[%emt 0:04:00]} Nxd4 {[%emt 0:00:55]} 16. Bxd4 {[%emt 0:00:11]} Bb7 {[%emt 0:00:06]} 17. f3 {[%emt 0:01:54]} Rc8 {[%emt 0:11:01]} 18. Rfd1 {[%emt 0:04:21]} Nd7 {[%emt 0:01:32]} 19. a4 {[%emt 0:09:25]} Ne5 {[%emt 0:05:57]} 20. a5 {[%emt 0:04:02]} bxa5 {[%emt 0:01:53]} 21. Bxa7 {[%emt 0:01:24]} Ba6 {[%emt 0:05:06]} 22. Qf2 {[%emt 0:07:20]} Bxc4 {[%emt 0:01:53]} 23. Bb6 {[%emt 0:03:04]} Qf6 {[%emt 0:09:12]} 24. Bxc4 {[%emt 0:01:48]} Rxc4 {[%emt 0:00:07]} 25. Rxa5 {[%emt 0:03:07]} Rec8 {[%emt 0:00:08]} 26. Rad5 Rc2 {[%emt 0:11:08]} 27. Qg3 {[%emt 0:12:09]} Nc4 {[%emt 0:10:10]} 28. Bd4 {[%emt 0:03:23]} Qg6 {[%emt 0:00:02]} 29. Qxg6 {[%emt 0:05:11]} fxg6 {[%emt 0:00:02]} 30. Rb5 {[%emt 0:02:54]} Rc7 {[%emt 0:00:14]} 31. Rb8+ {[%emt 0:02:04]} Kf7 {[%emt 0:01:26]} 32. Rdb1 {[%emt 0:02:31]} g5 {[%emt 0:00:54]} 33. R1b7 {[%emt 0:01:34]} Ne5 {[%emt 0:00:28]} 34. Bxe5 {[%emt 0:01:23]} dxe5 {[%emt 0:00:03]} 35. Rxc7+ {[%emt 0:00:31]} Rxc7 1/2-1/2

[Event "XI Paracin Festival 2018"]
[Site "Paracin"]
[Date "2018.07.11"]
[Round "7"]
[White "Eswaran, Ashritha"]
[Black "Martic, Ivan"]
[Result "0-1"]
[ECO "B80"]
[WhiteElo "2092"]
[BlackElo "2375"]
[Annotator "NA"]
[PlyCount "102"]
[EventDate "2018.07.06"]
[EventType "swiss"]
[EventCountry "SRB"]
[SourceTitle "playchess.com"]
[Source "ChessBase"]
[SourceQuality "1"]
[TimeControl "5400+30"]

1. e4 c5 2. Nf3 d6 3. d4 Nf6 4. Nc3 cxd4 5. Nxd4 e6 6. g3 Be7 7. Bg2 O-O 8. O-O a6 9. f4 Qc7 10. g4 Nc6 11. Nxc6 bxc6 12. g5 Nd7 13. f5 exf5 14. exf5 d5 15. Qh5 Ne5 16. f6 Bc5+ 17. Kh1 Bg4 18. Qh4 Qd7 19. fxg7 Rfe8 20. Bd2 Nc4 21. Rf4 Bf5 22. Na4 Ba7 23. Bc3 Re2 24. g6 fxg6 25. Bf3 Re3 26. Rf1 Rae8 27. Bg4 Nd6 28. Qg5 Rxc3 29. Nxc3 Qxg7 30. Bxf5 Nxf5 31. R4f3 Be3 32. Qg4 Kh8 33. Re1 d4 34. Nd1 c5 35. Nxe3 dxe3 36. c3 Qb7 37. Qg2 Re7 38. Kg1 Kg7 39. Rf4 Qd7 40. b4 Qd3 41. Qb2 c4 42. Qe2 Rc7 43. a4 Qxc3 44. b5 axb5 45. axb5 Qb4 46. Rc1 Qxb5 47. Rfxc4 Re7 48. R1c2 Qe5 49. Rc5 Qf4 50. R2c4 Nd4 51. Qb2 e2 0-1

[Event "XI Paracin Festival 2018"]
[Site "Paracin"]
[Date "2018.07.12"]
[Round "8"]
[White "Perunovic, Milos"]
[Black "Stankovic, Milos"]
[Result "1-0"]
[ECO "C11"]
[WhiteElo "2596"]
[BlackElo "2420"]
[Annotator "ChessBase"]
[PlyCount "55"]
[EventDate "2018.07.06"]
[EventType "swiss"]
[EventCountry "SRB"]
[SourceTitle "playchess.com"]
[Source "ChessBase"]
[SourceQuality "1"]
[TimeControl "5400+30"]

1. e4 {[%emt 0:00:00]} e6 {[%emt 0:02:02]} 2. d4 {[%emt 0:00:00]} d5 {[%emt 0:00:55]} 3. Nc3 {[%emt 0:00:23]} Nf6 {[%emt 0:01:06]} 4. e5 {[%emt 0:00:37]} Nfd7 {[%emt 0:01:13]} 5. f4 {[%emt 0:00:29]} c5 {[%emt 0:00:36]} 6. Nf3 {[%emt 0:00:26]} Nc6 {[%emt 0:00:34]} 7. Be3 {[%emt 0:00:36]} Be7 {[%emt 0:00:27]} 8. Qd2 {[%emt 0:00:55]} O-O {[%emt 0:00:29]} 9. dxc5 {[%emt 0:00:47]} Qa5 {[%emt 0:02:43]} 10. a3 {[%emt 0:01:45]} Bxc5 {[%emt 0:10:07]} 11. O-O-O {[%emt 0:00:08]} a6 {[%emt 0:18:49]} 12. Kb1 {[%emt 0:11:02]} Bxe3 {[%emt 0:07:48]} 13. Qxe3 {[%emt 0:00:24]} Rd8 {[%emt 0:01:28]} 14. Bd3 {[%emt 0:14:23]} b5 {[%emt 0:09:13]} 15. f5 {[%emt 0:12:28]} exf5 {[%emt 0:24:56]} 16. e6 {[%emt 0:10:48]} Nf6 {[%emt 0:02:49]} 17. exf7+ {[%emt 0:04:27]} Kxf7 {[%emt 0:00:20]} 18. Qc5 {[%emt 0:00:17]} Bb7 {[%emt 0:06:09]} 19. Bxf5 {[%emt 0:10:05]} h6 {[%emt 0:02:28]} 20. Nxd5 {[%emt 0:00:59]} Nxd5 {[%emt 0:00:17]} 21. Rxd5 {[%emt 0:00:20]} Ne7 {[%emt 0:02:42]} 22. Be6+ {[%emt 0:03:05]} Ke8 {[%emt 0:00:31]} 23. Rxd8+ {[%emt 0:01:26]} Rxd8 {[%emt 0:00:26]} 24. Qh5+ {[%emt 0:00:14]} g6 {[%emt 0:01:13]} 25. Qxh6 {[%emt 0:01:29]} Bxf3 {[%emt 0:00:24]} 26. Qh8+ {[%emt 0:00:23]} Ng8 {[%emt 0:00:12]} 27. Qxg8+ {[%emt 0:00:12]} Ke7 {[%emt 0:00:07]} 28. Qf7+ {[%emt 0:00:09]} 1-0

[Event "XI Paracin Festival 2018"]
[Site "Paracin"]
[Date "2018.07.12"]
[Round "8"]
[White "Shyam, Sundar M"]
[Black "Cerovic, Danilo"]
[Result "1/2-1/2"]
[ECO "B10"]
[WhiteElo "2527"]
[BlackElo "2294"]
[Annotator "ChessBase"]
[PlyCount "116"]
[EventDate "2018.07.06"]
[EventType "swiss"]
[EventCountry "SRB"]
[SourceTitle "playchess.com"]
[Source "ChessBase"]
[SourceQuality "1"]
[TimeControl "5400+30"]

1. e4 {[%emt 0:02:13]} c6 {[%emt 0:00:00]} 2. c4 {[%emt 0:01:11]} d5 {[%emt 0:00:00]} 3. exd5 {[%emt 0:00:13]} cxd5 {[%emt 0:00:00]} 4. cxd5 {[%emt 0:00:09]} Nf6 {[%emt 0:00:02]} 5. Nc3 {[%emt 0:00:07]} Nxd5 {[%emt 0:00:24]} 6. Nf3 {[%emt 0:00:26]} g6 {[%emt 0:00:40]} 7. Qb3 {[%emt 0:04:14]} Nb6 {[%emt 0:00:51]} 8. Bb5+ {[%emt 0:00:26]} Bd7 {[%emt 0:01:50]} 9. Ne5 {[%emt 0:00:08]} e6 {[%emt 0:00:38]} 10. Nxd7 {[%emt 0:00:38]} N8xd7 {[%emt 0:03:29]} 11. d4 {[%emt 0:06:00]} Bg7 {[%emt 0:06:57]} 12. O-O {[%emt 0:09:18]} O-O {[%emt 0:01:43]} 13. Rd1 {[%emt 0:00:04]} Nf6 {[%emt 0:03:52]} 14. Be2 {[%emt 0:01:12]} Qd7 {[%emt 0:02:42]} 15. Bf4 {[%emt 0:04:53]} Nfd5 {[%emt 0:05:39]} 16. Bg3 {[%emt 0:00:46]} Ne7 {[%emt 0:04:28]} 17. Bb5 {[%emt 0:09:32]} Qd8 {[%emt 0:02:31]} 18. Bh4 {[%emt 0:06:06]} h6 {[%emt 0:04:59]} 19. a4 {[%emt 0:00:05]} Nbd5 {[%emt 0:11:47]} 20. Bc4 {[%emt 0:13:06]} Qa5 {[%emt 0:05:33]} 21. Bg3 {[%emt 0:19:48]} Rac8 {[%emt 0:10:30]} 22. Rac1 {[%emt 0:05:12]} b6 {[%emt 0:12:49]} 23. Nb5 {[%emt 0:07:29]} Nf5 {[%emt 0:03:55]} 24. Be5 {[%emt 0:03:23]} Bxe5 {[%emt 0:04:10]} 25. dxe5 {[%emt 0:00:01]} a6 {[%emt 0:00:29]} 26. Na7 {[%emt 0:03:39]} Rc7 {[%emt 0:06:23]} 27. Bxd5 {[%emt 0:00:01]} Rxa7 {[%emt 0:01:56]} 28. Be4 {[%emt 0:00:37]} b5 {[%emt 0:00:29]} 29. Bxf5 {[%emt 0:01:23]} exf5 {[%emt 0:00:24]} 30. Rd6 {[%emt 0:00:50]} Kg7 {[%emt 0:01:56]} 31. axb5 {[%emt 0:00:29]} Qxb5 {[%emt 0:00:52]} 32. Qc3 {[%emt 0:00:29]} Kh7 {[%emt 0:02:06]} 33. e6 {[%emt 0:00:01]} Qe8 {[%emt 0:00:41]} 34. exf7 {[%emt 0:01:09]} Rfxf7 {[%emt 0:00:51]} 35. h4 {[%emt 0:00:01]} Rfd7 {[%emt 0:00:59]} 36. Rc6 {[%emt 0:00:07]} Qe2 {[%emt 0:00:15]} 37. Rc8 {[%emt 0:01:20]} Rd1+ {[%emt 0:00:15]} 38. Kh2 {[%emt 0:00:46]} Rg7 {[%emt 0:00:02]} 39. Rc7 {[%emt 0:01:03]} Rdd7 {[%emt 0:00:23]} 40. Rxd7 {[%emt 0:00:40]} Rxd7 {[%emt 0:00:02]} 41. Qc6 {[%emt 0:00:32]} Qe5+ {[%emt 0:00:51]} 42. g3 {[%emt 0:00:08]} Qd6 {[%emt 0:00:04]} 43. Qf3 {[%emt 0:00:28]} Qd5 {[%emt 0:00:57]} 44. Qf4 {[%emt 0:00:43]} Qd6 {[%emt 0:00:40]} 45. Qf3 {[%emt 0:00:22]} Qd5 {[%emt 0:00:04]} 46. Qe3 {[%emt 0:00:27]} Qd4 {[%emt 0:01:41]} 47. Rc7 {[%emt 0:00:01]} Qd6 {[%emt 0:00:00]} 48. Rxd7+ {[%emt 0:01:00]} Qxd7 {[%emt 0:00:02]} 49. Qb6 {[%emt 0:00:01]} Qd2 {[%emt 0:01:13]} 50. Qb7+ {[%emt 0:01:04]} Kg8 {[%emt 0:00:18]} 51. Kg2 {[%emt 0:00:04]} Qd6 {[%emt 0:00:15]} 52. h5 {[%emt 0:00:27]} Qf6 {[%emt 0:00:53]} 53. hxg6 {[%emt 0:00:43]} Qxg6 {[%emt 0:00:02]} 54. b4 {[%emt 0:00:23]} h5 {[%emt 0:01:07]} 55. Qc7 {[%emt 0:00:29]} Kf8 {[%emt 0:00:38]} 56. f3 {[%emt 0:00:37]} Qe6 {[%emt 0:00:50]} 57. Qf4 {[%emt 0:00:08]} Kf7 {[%emt 0:00:21]} 58. Kh3 {[%emt 0:00:03]} Kg6 {[%emt 0:00:13]} 1/2-1/2

[Event "XI Paracin Festival 2018"]
[Site "Paracin"]
[Date "2018.07.12"]
[Round "8"]
[White "Atalik, Suat"]
[Black "Kadric, Denis"]
[Result "0-1"]
[ECO "A41"]
[WhiteElo "2509"]
[BlackElo "2522"]
[Annotator "RC"]
[PlyCount "138"]
[EventDate "2018.07.06"]
[EventType "swiss"]
[EventCountry "SRB"]
[SourceTitle "playchess.com"]
[Source "ChessBase"]
[SourceQuality "1"]
[TimeControl "5400+30"]

1. d4 {[%emt 0:00:00]} d6 {[%emt 0:00:00]} 2. Nf3 {[%emt 0:00:00]} g6 {[%emt 0:00:00]} 3. c4 {[%emt 0:00:10]} f5 {[%emt 0:00:00]} 4. Nc3 {[%emt 0:00:55]} Nf6 {[%emt 0:00:00]} 5. g3 {[%emt 0:00:24]} Bg7 {[%emt 0:00:00]} 6. Bg2 {[%emt 0:00:08]} O-O {[%emt 0:00:00]} 7. O-O {[%emt 0:00:21]} Qe8 {[%emt 0:00:00]} 8. Re1 {[%emt 0:01:21]} Qf7 {[%emt 0:00:02]} 9. e4 {[%emt 0:02:41]} fxe4 {[%emt 0:00:31]} 10. Nxe4 {[%emt 0:02:55]} Qxc4 {[%emt 0:12:47]} 11. Nxf6+ {[%emt 0:01:01]} exf6 {[%emt 0:02:14]} 12. Re7 {[%emt 0:01:46]} Na6 {[%emt 0:15:54]} 13. b3 {[%emt 0:05:16]} Qb5 {[%emt 0:02:22]} 14. d5 {[%emt 0:00:24]} Bg4 {[%emt 0:09:29]} 15. a4 {[%emt 0:07:18]} Qc5 {[%emt 0:08:01]} 16. Be3 {[%emt 0:11:29]} Qc3 {[%emt 0:01:06]} 17. Rc1 {[%emt 0:07:50]} Qb2 {[%emt 0:00:05]} 18. Bd4 {[%emt 0:07:01]} Qa3 {[%emt 0:00:49]} 19. h3 {[%emt 0:03:37]} Bxf3 {[%emt 0:01:23]} 20. Bxf3 {[%emt 0:00:05]} Rae8 {[%emt 0:01:25]} 21. Re6 {[%emt 0:09:25]} Rxe6 {[%emt 0:03:46]} 22. dxe6 {[%emt 0:00:05]} c6 {[%emt 0:00:04]} 23. Bxa7 {[%emt 0:05:53]} Nc7 {[%emt 0:02:13]} 24. b4 {[%emt 0:02:11]} Nxe6 {[%emt 0:15:19]} 25. Be3 {[%emt 0:07:00]} f5 {[%emt 0:01:50]} 26. Qxd6 {[%emt 0:02:00]} Nd4 {[%emt 0:02:36]} 27. Bd1 {[%emt 0:01:18]} Re8 {[%emt 0:04:35]} 28. Qf4 {[%emt 0:06:14]} Be5 {[%emt 0:01:23]} 29. Qh6 {[%emt 0:02:11]} Qxb4 {[%emt 0:00:03]} 30. Bd2 {[%emt 0:02:31]} Qd6 {[%emt 0:01:18]} 31. Qe3 {[%emt 0:02:54]} Re7 {[%emt 0:00:09]} 32. Qd3 {[%emt 0:02:09]} Rd7 {[%emt 0:02:10]} 33. Qc4+ {[%emt 0:01:12]} Kg7 {[%emt 0:04:09]} 34. Bb4 {[%emt 0:00:37]} Qe6 {[%emt 0:02:32]} 35. Qxe6 {[%emt 0:01:04]} Nxe6 {[%emt 0:00:02]} 36. a5 {[%emt 0:00:25]} c5 {[%emt 0:04:34]} 37. Be1 {[%emt 0:00:14]} Rc7 {[%emt 0:01:21]} 38. Rc4 {[%emt 0:00:18]} Kf6 {[%emt 0:00:30]} 39. Kf1 {[%emt 0:00:22]} Bd4 {[%emt 0:00:25]} 40. Be2 {[%emt 0:00:27]} f4 {[%emt 0:00:30]} 41. Ra4 {[%emt 0:00:51]} Ke5 {[%emt 0:00:31]} 42. h4 {[%emt 0:01:47]} fxg3 {[%emt 0:02:51]} 43. fxg3 {[%emt 0:00:02]} g5 {[%emt 0:00:44]} 44. hxg5 {[%emt 0:01:05]} Nxg5 {[%emt 0:00:07]} 45. Kg2 {[%emt 0:01:43]} Ne4 {[%emt 0:00:18]} 46. a6 {[%emt 0:00:33]} bxa6 {[%emt 0:00:03]} 47. Rxa6 {[%emt 0:00:04]} Bc3 {[%emt 0:00:51]} 48. Bf2 {[%emt 0:00:33]} Bd4 {[%emt 0:00:07]} 49. Be1 {[%emt 0:00:06]} Rb7 {[%emt 0:00:47]} 50. Ra2 {[%emt 0:00:59]} Rb3 {[%emt 0:00:59]} 51. g4 {[%emt 0:01:50]} Kf4 {[%emt 0:00:48]} 52. Bc4 {[%emt 0:01:53]} Re3 {[%emt 0:00:50]} 53. Bd2 {[%emt 0:00:45]} Nxd2 {[%emt 0:00:18]} 54. Rxd2 {[%emt 0:00:02]} Kxg4 {[%emt 0:00:44]} 55. Re2 {[%emt 0:00:44]} Rg3+ {[%emt 0:00:16]} 56. Kh2 {[%emt 0:00:01]} Rc3 {[%emt 0:00:08]} 57. Bf7 {[%emt 0:01:02]} h5 {[%emt 0:01:39]} 58. Re4+ {[%emt 0:00:48]} Kg5 {[%emt 0:00:10]} 59. Be6 {[%emt 0:00:14]} h4 {[%emt 0:00:37]} 60. Rg4+ {[%emt 0:00:11]} Kf6 {[%emt 0:00:04]} 61. Bc8 {[%emt 0:00:07]} Be5+ {[%emt 0:00:22]} 62. Kg1 {[%emt 0:00:13]} h3 {[%emt 0:00:52]} 63. Bb7 {[%emt 0:00:40]} Rc1+ {[%emt 0:01:05]} 64. Kf2 {[%emt 0:00:07]} h2 {[%emt 0:00:10]} 65. Rh4 {[%emt 0:00:06]} c4 {[%emt 0:00:30]} 66. Ke3 {[%emt 0:00:22]} c3 {[%emt 0:00:22]} 67. Ke2 {[%emt 0:01:37]} Rb1 {[%emt 0:00:42]} 68. Be4 {[%emt 0:00:43]} c2 {[%emt 0:00:39]} 69. Rh6+ {[%emt 0:00:06]} Kg5 {[%emt 0:00:22]} 0-1

[Event "XI Paracin Festival 2018"]
[Site "Paracin"]
[Date "2018.07.12"]
[Round "8"]
[White "Yilmazyerli, Mert"]
[Black "Peycheva, Gergana"]
[Result "1/2-1/2"]
[ECO "B46"]
[WhiteElo "2491"]
[BlackElo "2157"]
[Annotator "ChessBase"]
[PlyCount "37"]
[EventDate "2018.07.06"]
[EventType "swiss"]
[EventCountry "SRB"]
[SourceTitle "playchess.com"]
[Source "ChessBase"]
[SourceQuality "1"]
[TimeControl "5400+30"]

1. e4 {[%emt 0:00:00]} c5 {[%emt 0:00:00]} 2. Nf3 {[%emt 0:00:00]} e6 {[%emt 0:00:09]} 3. d4 {[%emt 0:00:00]} cxd4 {[%emt 0:00:28]} 4. Nxd4 {[%emt 0:00:00]} Nc6 {[%emt 0:01:04]} 5. Nc3 {[%emt 0:00:02]} a6 {[%emt 0:01:32]} 6. Nb3 {[%emt 0:03:50]} Nf6 {[%emt 0:01:59]} 7. Bd3 {[%emt 0:03:56]} Qc7 {[%emt 0:02:44]} 8. f4 {[%emt 0:01:02]} d6 {[%emt 0:00:16]} 9. O-O {[%emt 0:00:43]} Be7 {[%emt 0:01:59]} 10. Qe2 {[%emt 0:00:55]} b5 {[%emt 0:06:32]} 11. a3 {[%emt 0:02:11]} Bb7 {[%emt 0:01:28]} 12. Bd2 {[%emt 0:01:20]} O-O {[%emt 0:03:00]} 13. Rae1 {[%emt 0:00:18]} Rad8 {[%emt 0:11:19]} 14. e5 {[%emt 0:08:04]} dxe5 {[%emt 0:06:01]} 15. fxe5 {[%emt 0:00:55]} Nd7 {[%emt 0:07:26]} 16. Bf4 {[%emt 0:07:02]} g6 {[%emt 0:07:07]} 17. Kh1 {[%emt 0:05:12]} Bh4 {[%emt 0:04:32]} 18. Nd5 {[%emt 0:07:30]} exd5 {[%emt 0:10:21]} 19. e6 {[%emt 0:01:56]} 1/2-1/2